[Event "Late-Titled-Tuesday-Blitz-June-18-2024"]
[Site "Chess.com"]
[Date "2024.06.18"]
[Round "6"]
[White "vladislavkovalev"]
[Black "yobdc"]
[Result "1-0"]
[WhiteElo "2872"]
[BlackElo "2572"]
[TimeControl "180+1"]
[EndTime "15:08:46 PDT"]
[Termination "vladislavkovalev won on time"]

1. e4 {[%clk 0:02:57.8]} 1... c5 {[%clk 0:03:00.1]} 2. Nf3 {[%clk 0:02:58.1]}
2... Nf6 {[%clk 0:03:00.5]} 3. Nc3 {[%clk 0:02:56.4]} 3... Nc6 {[%clk
0:03:00.1]} 4. Bb5 {[%clk 0:02:49]} 4... Qc7 {[%clk 0:02:59.6]} 5. O-O {[%clk
0:02:48.8]} 5... Nd4 {[%clk 0:02:59.3]} 6. Re1 {[%clk 0:02:47.9]} 6... e6 {[%clk
0:02:46.3]} 7. e5 {[%clk 0:02:42]} 7... Ng8 {[%clk 0:02:29.1]} 8. d3 {[%clk
0:02:11.9]} 8... a6 {[%clk 0:02:27.2]} 9. Ba4 {[%clk 0:02:11.4]} 9... b5 {[%clk
0:02:27.2]} 10. Bb3 {[%clk 0:02:11.9]} 10... Nxb3 {[%clk 0:02:20.1]} 11. axb3
{[%clk 0:02:11.9]} 11... Bb7 {[%clk 0:02:20.5]} 12. Bf4 {[%clk 0:02:08.9]} 12...
Ne7 {[%clk 0:02:19.6]} 13. Ne4 {[%clk 0:02:08.2]} 13... Ng6 {[%clk 0:02:15.6]}
14. Bg3 {[%clk 0:02:07.4]} 14... Bxe4 {[%clk 0:01:59.5]} 15. dxe4 {[%clk
0:02:05.2]} 15... Be7 {[%clk 0:01:57.2]} 16. h4 {[%clk 0:02:02]} 16... h5 {[%clk
0:01:47.5]} 17. Qe2 {[%clk 0:02:00.8]} 17... d6 {[%clk 0:01:38.9]} 18. exd6
{[%clk 0:01:48.9]} 18... Bxd6 {[%clk 0:01:39.8]} 19. Bxd6 {[%clk 0:01:47.8]}
19... Qxd6 {[%clk 0:01:40.7]} 20. Red1 {[%clk 0:01:44.2]} 20... Qc6 {[%clk
0:01:28.7]} 21. g3 {[%clk 0:01:44]} 21... f6 {[%clk 0:01:13.5]} 22. Rd2 {[%clk
0:01:36.8]} 22... Rd8 {[%clk 0:00:53.8]} 23. Rad1 {[%clk 0:01:34.6]} 23... Ke7
{[%clk 0:00:48.3]} 24. Rxd8 {[%clk 0:01:09.2]} 24... Rxd8 {[%clk 0:00:49.2]} 25.
Rxd8 {[%clk 0:01:09.6]} 25... Kxd8 {[%clk 0:00:49.7]} 26. Nd2 {[%clk 0:01:08.2]}
26... Qd6 {[%clk 0:00:26.9]} 27. Qxh5 {[%clk 0:01:01.8]} 27... Ne5 {[%clk
0:00:15.6]} 28. Qh8+ {[%clk 0:01:02]} 28... Kc7 {[%clk 0:00:15.5]} 29. Qxg7+
{[%clk 0:01:02.7]} 29... Kb6 {[%clk 0:00:15.9]} 30. Qxf6 {[%clk 0:01:02.4]}
30... Nc6 {[%clk 0:00:01.2]} 31. Qf4 {[%clk 0:00:44.1]} 31... Qd4 {[%clk
0:00:01]} 32. c3 {[%clk 0:00:40.1]} 32... Qd3 {[%clk 0:00:01.1]} 33. h5 {[%clk
0:00:40.1]} 33... a5 {[%clk 0:00:01.1]} 34. h6 {[%clk 0:00:40.2]} 34... a4
{[%clk 0:00:01.3]} 35. bxa4 {[%clk 0:00:40]} 35... bxa4 {[%clk 0:00:02.2]} 36.
h7 {[%clk 0:00:39.4]} 36... Qd8 {[%clk 0:00:02.7]} 37. Qh6 {[%clk 0:00:38.8]}
37... Qh8 {[%clk 0:00:02.6]} 38. Nc4+ {[%clk 0:00:39.3]} 38... Kb5 {[%clk
0:00:02.6]} 39. Nd6+ {[%clk 0:00:39.9]} 39... Kb6 {[%clk 0:00:02.5]} 40. Nf7
{[%clk 0:00:40.6]} 40... Qe8 {[%clk 0:00:01.3]} 41. Qf6 {[%clk 0:00:35.4]} 1-0

[Event "Late-Titled-Tuesday-Blitz-June-18-2024"]
[Site "Chess.com"]
[Date "2024.06.18"]
[Round "6"]
[White "Alina_Gumerovna"]
[Black "DeArron_Fox"]
[Result "0-1"]
[WhiteElo "2209"]
[BlackElo "2456"]
[TimeControl "180+1"]
[EndTime "15:08:46 PDT"]
[Termination "DeArron_Fox won on time"]

1. e4 {[%clk 0:02:57.3]} 1... c5 {[%clk 0:02:57.8]} 2. a3 {[%clk 0:02:57.1]}
2... Nc6 {[%clk 0:02:55.2]} 3. b4 {[%clk 0:02:56.9]} 3... d5 {[%clk 0:02:42.9]}
4. b5 {[%clk 0:02:37.2]} 4... Nd4 {[%clk 0:02:28.6]} 5. exd5 {[%clk 0:02:18.3]}
5... Qxd5 {[%clk 0:02:29.5]} 6. Nc3 {[%clk 0:02:18.8]} 6... Qd8 {[%clk 0:02:23]}
7. Nge2 {[%clk 0:02:07]} 7... g6 {[%clk 0:02:06]} 8. Bb2 {[%clk 0:02:00.7]} 8...
Bg7 {[%clk 0:02:06]} 9. Nxd4 {[%clk 0:01:54.3]} 9... Bxd4 {[%clk 0:01:52.4]} 10.
Bc4 {[%clk 0:01:48.5]} 10... Nf6 {[%clk 0:01:52.1]} 11. O-O {[%clk 0:01:47.5]}
11... O-O {[%clk 0:01:52.3]} 12. Rb1 {[%clk 0:01:29.3]} 12... Bg4 {[%clk
0:01:43.2]} 13. Be2 {[%clk 0:01:28]} 13... Bxe2 {[%clk 0:01:42.4]} 14. Qxe2
{[%clk 0:01:28.9]} 14... e6 {[%clk 0:01:38.2]} 15. d3 {[%clk 0:01:22.4]} 15...
Nd5 {[%clk 0:01:35.8]} 16. Ne4 {[%clk 0:01:14.2]} 16... b6 {[%clk 0:01:30.1]}
17. c3 {[%clk 0:00:26]} 17... Bg7 {[%clk 0:01:26.5]} 18. c4 {[%clk 0:00:23.1]}
18... Bxb2 {[%clk 0:01:07.7]} 19. Qxb2 {[%clk 0:00:24]} 19... f5 {[%clk
0:00:53.6]} 20. cxd5 {[%clk 0:00:16.5]} 20... fxe4 {[%clk 0:00:53.6]} 21. dxe4
{[%clk 0:00:17.4]} 21... exd5 {[%clk 0:00:53]} 22. exd5 {[%clk 0:00:03.6]} 22...
Qxd5 {[%clk 0:00:52.2]} 23. Rbd1 {[%clk 0:00:04.5]} 23... Qf7 {[%clk 0:00:51]}
24. Rd6 {[%clk 0:00:03.1]} 24... Rad8 {[%clk 0:00:49.3]} 25. Rfd1 {[%clk
0:00:03.5]} 25... Rxd6 {[%clk 0:00:48.1]} 26. Rxd6 {[%clk 0:00:04.4]} 26... c4
{[%clk 0:00:47.5]} 27. Rd2 {[%clk 0:00:04.1]} 27... Re8 {[%clk 0:00:45.5]} 28.
h3 {[%clk 0:00:02.2]} 28... Qc7 {[%clk 0:00:35.6]} 29. Rd1 {[%clk 0:00:01.3]}
29... c3 {[%clk 0:00:29.3]} 30. Qb3+ {[%clk 0:00:01.3]} 30... Kg7 {[%clk
0:00:29.7]} 31. Rc1 {[%clk 0:00:01.4]} 31... c2 {[%clk 0:00:21.2]} 0-1

[Event "Late-Titled-Tuesday-Blitz-June-18-2024"]
[Site "Chess.com"]
[Date "2024.06.18"]
[Round "6"]
[White "Matalon"]
[Black "SchmakAttack"]
[Result "0-1"]
[WhiteElo "2501"]
[BlackElo "2830"]
[TimeControl "180+1"]
[EndTime "15:08:49 PDT"]
[Termination "SchmakAttack won on time"]

1. e4 {[%clk 0:03:00.9]} 1... c5 {[%clk 0:03:00]} 2. Nf3 {[%clk 0:02:59.8]} 2...
Nc6 {[%clk 0:02:59.4]} 3. d4 {[%clk 0:02:58.7]} 3... cxd4 {[%clk 0:02:59.4]} 4.
Nxd4 {[%clk 0:02:59.6]} 4... Nf6 {[%clk 0:02:59.5]} 5. Nc3 {[%clk 0:02:58.7]}
5... e6 {[%clk 0:02:59.7]} 6. Ndb5 {[%clk 0:02:54.6]} 6... d6 {[%clk 0:02:58.6]}
7. Bf4 {[%clk 0:02:53.5]} 7... e5 {[%clk 0:02:59]} 8. Bg5 {[%clk 0:02:53.5]}
8... a6 {[%clk 0:02:59.7]} 9. Na3 {[%clk 0:02:51.8]} 9... b5 {[%clk 0:03:00.3]}
10. Nd5 {[%clk 0:02:50.8]} 10... Be7 {[%clk 0:02:59.6]} 11. Bxf6 {[%clk
0:02:50.7]} 11... Bxf6 {[%clk 0:02:59.8]} 12. c3 {[%clk 0:02:51.4]} 12... Rb8
{[%clk 0:02:57.4]} 13. Nc2 {[%clk 0:02:49.9]} 13... Bg5 {[%clk 0:02:57.1]} 14.
Be2 {[%clk 0:02:47]} 14... O-O {[%clk 0:02:56.8]} 15. O-O {[%clk 0:02:47.1]}
15... Kh8 {[%clk 0:02:50.3]} 16. Qd3 {[%clk 0:02:13.4]} 16... f5 {[%clk
0:02:39.9]} 17. Bf3 {[%clk 0:02:08.5]} 17... g6 {[%clk 0:02:15.3]} 18. Rad1
{[%clk 0:02:01.5]} 18... Bh6 {[%clk 0:02:12.1]} 19. Ndb4 {[%clk 0:01:59.2]}
19... Nxb4 {[%clk 0:02:04.9]} 20. Nxb4 {[%clk 0:01:58.5]} 20... Rb6 {[%clk
0:02:05.4]} 21. Nd5 {[%clk 0:01:50.9]} 21... Rb7 {[%clk 0:02:01.8]} 22. Nb4
{[%clk 0:01:37.4]} 22... Rb6 {[%clk 0:01:49.6]} 23. Nd5 {[%clk 0:01:34]} 23...
Rb7 {[%clk 0:01:49.9]} 24. Nb4 {[%clk 0:01:31.8]} 24... Rd7 {[%clk 0:01:47.8]}
25. exf5 {[%clk 0:01:30.2]} 25... gxf5 {[%clk 0:01:48.7]} 26. Bc6 {[%clk
0:01:30.1]} 26... Rg7 {[%clk 0:01:09.8]} 27. Qxd6 {[%clk 0:01:28.9]} 27... Qxd6
{[%clk 0:01:10.3]} 28. Rxd6 {[%clk 0:01:27.7]} 28... Bg5 {[%clk 0:01:11.2]} 29.
Nd5 {[%clk 0:01:22.2]} 29... e4 {[%clk 0:01:08.3]} 30. g3 {[%clk 0:01:10.2]}
30... f4 {[%clk 0:01:07.7]} 31. Re1 {[%clk 0:00:57.5]} 31... e3 {[%clk
0:00:54.8]} 32. fxe3 {[%clk 0:00:45.6]} 32... fxg3 {[%clk 0:00:55.7]} 33. Nf4
{[%clk 0:00:39.1]} 33... gxh2+ {[%clk 0:00:48.2]} 34. Kxh2 {[%clk 0:00:38.5]}
34... Rxf4 {[%clk 0:00:47.5]} 35. exf4 {[%clk 0:00:33.3]} 35... Bxf4+ {[%clk
0:00:48.4]} 36. Kh1 {[%clk 0:00:33.5]} 36... Bxd6 {[%clk 0:00:49]} 37. Bd5
{[%clk 0:00:30.2]} 37... Re7 {[%clk 0:00:42.4]} 38. Rxe7 {[%clk 0:00:19.9]}
38... Bxe7 {[%clk 0:00:43.3]} 39. Kg2 {[%clk 0:00:19.2]} 39... Kg7 {[%clk
0:00:43.6]} 40. b3 {[%clk 0:00:11.2]} 40... Kf6 {[%clk 0:00:43.6]} 41. a4 {[%clk
0:00:10.4]} 41... bxa4 {[%clk 0:00:42.6]} 42. bxa4 {[%clk 0:00:10.1]} 42... Ke5
{[%clk 0:00:40.5]} 43. Bg8 {[%clk 0:00:09.8]} 43... h5 {[%clk 0:00:40.6]} 0-1

[Event "Late-Titled-Tuesday-Blitz-June-18-2024"]
[Site "Chess.com"]
[Date "2024.06.18"]
[Round "6"]
[White "KNVB"]
[Black "bob1263"]
[Result "1-0"]
[WhiteElo "2783"]
[BlackElo "2513"]
[TimeControl "180+1"]
[EndTime "15:08:50 PDT"]
[Termination "KNVB won on time"]

1. e4 {[%clk 0:03:00.9]} 1... c5 {[%clk 0:02:58.9]} 2. e5 {[%clk 0:03:01.6]}
2... Nc6 {[%clk 0:02:57.7]} 3. c3 {[%clk 0:03:02.5]} 3... Nxe5 {[%clk
0:02:55.5]} 4. d4 {[%clk 0:03:02.9]} 4... cxd4 {[%clk 0:02:54.5]} 5. cxd4 {[%clk
0:03:03.8]} 5... Nc6 {[%clk 0:02:40.1]} 6. d5 {[%clk 0:03:04.1]} 6... Ne5 {[%clk
0:02:36.6]} 7. Nc3 {[%clk 0:03:05]} 7... Nf6 {[%clk 0:02:34.5]} 8. f4 {[%clk
0:03:00.2]} 8... Ng6 {[%clk 0:02:31.3]} 9. Nf3 {[%clk 0:02:55.8]} 9... d6 {[%clk
0:02:30.3]} 10. Bb5+ {[%clk 0:02:01.5]} 10... Bd7 {[%clk 0:02:28.9]} 11. O-O
{[%clk 0:01:55.6]} 11... e6 {[%clk 0:02:21.7]} 12. dxe6 {[%clk 0:01:37.2]} 12...
fxe6 {[%clk 0:02:20.6]} 13. Qe2 {[%clk 0:01:23.4]} 13... Bxb5 {[%clk 0:02:04.4]}
14. Nxb5 {[%clk 0:00:51.3]} 14... Qd7 {[%clk 0:01:34.5]} 15. f5 {[%clk
0:00:38.9]} 15... Ne5 {[%clk 0:01:29.5]} 16. fxe6 {[%clk 0:00:39.2]} 16... Qc6
{[%clk 0:01:28.3]} 17. Be3 {[%clk 0:00:11.2]} 17... a6 {[%clk 0:01:23.1]} 18.
Nbd4 {[%clk 0:00:05]} 18... Qe4 {[%clk 0:01:20.8]} 19. Rae1 {[%clk 0:00:02]}
19... Rc8 {[%clk 0:01:08.4]} 20. Bg5 {[%clk 0:00:01.7]} 20... Qxe2 {[%clk
0:00:55.6]} 21. Rxe2 {[%clk 0:00:02.6]} 21... Nxf3+ {[%clk 0:00:21.7]} 22. Rxf3
{[%clk 0:00:03.5]} 22... Rc5 {[%clk 0:00:18.5]} 23. e7 {[%clk 0:00:02.3]} 23...
Bxe7 {[%clk 0:00:15.2]} 24. Nf5 {[%clk 0:00:01.7]} 24... Re5 {[%clk 0:00:15]}
25. Rxe5 {[%clk 0:00:01.8]} 25... dxe5 {[%clk 0:00:14.4]} 26. Nxg7+ {[%clk
0:00:02.7]} 26... Kf7 {[%clk 0:00:14.5]} 27. Bxf6 {[%clk 0:00:02.5]} 27... Bxf6
{[%clk 0:00:13.8]} 28. Nh5 {[%clk 0:00:02.8]} 1-0

[Event "Late-Titled-Tuesday-Blitz-June-18-2024"]
[Site "Chess.com"]
[Date "2024.06.18"]
[Round "6"]
[White "GHANDEEVAM2003"]
[Black "NailBashirli"]
[Result "1-0"]
[WhiteElo "2990"]
[BlackElo "2747"]
[TimeControl "180+1"]
[EndTime "15:08:52 PDT"]
[Termination "GHANDEEVAM2003 won on time"]

1. Nf3 {[%clk 0:03:00.9]} 1... c5 {[%clk 0:02:57.9]} 2. b3 {[%clk 0:03:00.4]}
2... d5 {[%clk 0:02:56.9]} 3. e3 {[%clk 0:02:59.4]} 3... Bf5 {[%clk 0:02:56.3]}
4. Bb2 {[%clk 0:02:57.2]} 4... a6 {[%clk 0:02:55.9]} 5. c4 {[%clk 0:02:56.1]}
5... e6 {[%clk 0:02:53]} 6. g3 {[%clk 0:02:38.4]} 6... Nc6 {[%clk 0:02:49.2]} 7.
Nh4 {[%clk 0:02:38.1]} 7... Be4 {[%clk 0:02:43.9]} 8. f3 {[%clk 0:02:38.2]} 8...
Bg6 {[%clk 0:02:42.7]} 9. Nc3 {[%clk 0:02:31.8]} 9... Nf6 {[%clk 0:02:39.6]} 10.
cxd5 {[%clk 0:02:26.9]} 10... exd5 {[%clk 0:02:38.5]} 11. Nxg6 {[%clk
0:02:21.9]} 11... hxg6 {[%clk 0:02:38.5]} 12. Ne2 {[%clk 0:02:22.6]} 12... Bd6
{[%clk 0:02:36.2]} 13. Rc1 {[%clk 0:02:19.3]} 13... Qe7 {[%clk 0:02:34.9]} 14.
Bg2 {[%clk 0:02:14.4]} 14... g5 {[%clk 0:02:20.6]} 15. a3 {[%clk 0:02:12]} 15...
O-O-O {[%clk 0:02:14.4]} 16. b4 {[%clk 0:02:08.2]} 16... c4 {[%clk 0:02:02.6]}
17. Qa4 {[%clk 0:02:04.7]} 17... Be5 {[%clk 0:01:50.4]} 18. Bc3 {[%clk
0:02:03.7]} 18... d4 {[%clk 0:01:47.4]} 19. f4 {[%clk 0:01:37.6]} 19... dxc3
{[%clk 0:01:43.4]} 20. dxc3 {[%clk 0:01:38.5]} 20... Bxf4 {[%clk 0:01:27.2]} 21.
exf4 {[%clk 0:01:19.9]} 21... Qe3 {[%clk 0:01:25.9]} 22. Qc2 {[%clk 0:01:10.6]}
22... Ng4 {[%clk 0:01:22.1]} 23. Qf5+ {[%clk 0:01:09.8]} 23... Kb8 {[%clk
0:01:16.8]} 24. Qxg4 {[%clk 0:01:09.6]} 24... Rhe8 {[%clk 0:01:04.6]} 25. Kf1
{[%clk 0:01:03.6]} 25... Qd2 {[%clk 0:00:24.7]} 26. Re1 {[%clk 0:00:58.5]} 26...
f5 {[%clk 0:00:24.4]} 27. Qxf5 {[%clk 0:00:44]} 27... Ne5 {[%clk 0:00:21.8]} 28.
Qe4 {[%clk 0:00:36.4]} 28... Re7 {[%clk 0:00:06.6]} 29. fxe5 {[%clk 0:00:31.6]}
29... Rf8+ {[%clk 0:00:06.4]} 30. Bf3 {[%clk 0:00:27.8]} 30... g4 {[%clk
0:00:04.8]} 31. Qxg4 {[%clk 0:00:27.1]} 31... Ref7 {[%clk 0:00:02]} 32. Nd4
{[%clk 0:00:22.5]} 1-0

[Event "Late-Titled-Tuesday-Blitz-June-18-2024"]
[Site "Chess.com"]
[Date "2024.06.18"]
[Round "6"]
[White "alexrustemov"]
[Black "Chigorinetz"]
[Result "1-0"]
[WhiteElo "2854"]
[BlackElo "2613"]
[TimeControl "180+1"]
[EndTime "15:08:58 PDT"]
[Termination "alexrustemov won by resignation"]

1. d4 {[%clk 0:03:00.9]} 1... d5 {[%clk 0:02:59.4]} 2. Nf3 {[%clk 0:03:00.1]}
2... Nc6 {[%clk 0:02:59.2]} 3. Bf4 {[%clk 0:02:58.8]} 3... Bg4 {[%clk
0:02:58.8]} 4. e3 {[%clk 0:02:57.2]} 4... e6 {[%clk 0:02:58.9]} 5. c4 {[%clk
0:02:50.3]} 5... Bd6 {[%clk 0:02:58]} 6. Bg3 {[%clk 0:02:48.8]} 6... Nf6 {[%clk
0:02:57.3]} 7. Nc3 {[%clk 0:02:47.9]} 7... Ne7 {[%clk 0:02:57]} 8. Rc1 {[%clk
0:02:37.4]} 8... O-O {[%clk 0:02:54.6]} 9. Be2 {[%clk 0:02:35.2]} 9... a6 {[%clk
0:02:46]} 10. O-O {[%clk 0:02:32.9]} 10... c6 {[%clk 0:02:33.8]} 11. Bxd6 {[%clk
0:02:19.8]} 11... Qxd6 {[%clk 0:02:32.5]} 12. Ne5 {[%clk 0:02:19.1]} 12... Bxe2
{[%clk 0:02:31.5]} 13. Qxe2 {[%clk 0:02:20]} 13... c5 {[%clk 0:02:09.4]} 14. Nf3
{[%clk 0:02:14.2]} 14... cxd4 {[%clk 0:02:04.9]} 15. Nxd4 {[%clk 0:02:11.2]}
15... Rac8 {[%clk 0:02:04.3]} 16. cxd5 {[%clk 0:02:10.3]} 16... Nexd5 {[%clk
0:02:03.8]} 17. Nxd5 {[%clk 0:02:09.8]} 17... Qxd5 {[%clk 0:02:01.5]} 18. a3
{[%clk 0:01:59.4]} 18... h6 {[%clk 0:02:01.6]} 19. h3 {[%clk 0:01:59.2]} 19...
Ne4 {[%clk 0:02:01.2]} 20. Rfd1 {[%clk 0:01:57.2]} 20... Rfd8 {[%clk 0:01:58.4]}
21. Nf3 {[%clk 0:01:39.8]} 21... Rxc1 {[%clk 0:01:42.2]} 22. Rxc1 {[%clk
0:01:39.3]} 22... Ng5 {[%clk 0:01:22.4]} 23. Nxg5 {[%clk 0:01:33.3]} 23... hxg5
{[%clk 0:01:18.7]} 24. Qc2 {[%clk 0:01:30.4]} 24... b5 {[%clk 0:01:06.5]} 25. b4
{[%clk 0:01:26.5]} 25... Qd3 {[%clk 0:01:02.4]} 26. Qc7 {[%clk 0:01:25.3]} 26...
Rd7 {[%clk 0:01:00.5]} 27. Qc8+ {[%clk 0:01:23.5]} 27... Kh7 {[%clk 0:00:59]}
28. Qxa6 {[%clk 0:01:23.9]} 28... Rd5 {[%clk 0:00:57.5]} 29. Rf1 {[%clk
0:01:11.3]} 29... Qc4 {[%clk 0:00:53.3]} 30. Qa7 {[%clk 0:01:06.6]} 30... Kg6
{[%clk 0:00:45.9]} 31. Qe7 {[%clk 0:00:57.1]} 31... Qc3 {[%clk 0:00:39.6]} 32.
e4 {[%clk 0:00:49.9]} 32... Re5 {[%clk 0:00:37.4]} 33. f3 {[%clk 0:00:40]} 33...
Qxa3 {[%clk 0:00:34.9]} 34. Qd6 {[%clk 0:00:39]} 34... Qe3+ {[%clk 0:00:33.9]}
35. Kh1 {[%clk 0:00:37.8]} 35... Qf4 {[%clk 0:00:33.7]} 36. Rd1 {[%clk 0:00:35]}
36... g4 {[%clk 0:00:32]} 37. hxg4 {[%clk 0:00:33.8]} 37... Qg3 {[%clk
0:00:29.5]} 38. Kg1 {[%clk 0:00:30.2]} 38... f6 {[%clk 0:00:29.6]} 39. Qd4
{[%clk 0:00:29.1]} 39... Qf4 {[%clk 0:00:24.7]} 40. Kf2 {[%clk 0:00:27.3]} 40...
Qg5 {[%clk 0:00:24]} 41. Qe3 {[%clk 0:00:25.7]} 41... Qh4+ {[%clk 0:00:23.9]}
42. Kg1 {[%clk 0:00:25.8]} 42... Qg3 {[%clk 0:00:20.4]} 43. Qf2 {[%clk
0:00:25.3]} 43... Qf4 {[%clk 0:00:20.2]} 44. g3 {[%clk 0:00:25.8]} 44... Qh6
{[%clk 0:00:19.9]} 45. Kg2 {[%clk 0:00:26]} 45... Rg5 {[%clk 0:00:16.4]} 46. Rh1
{[%clk 0:00:25.4]} 1-0

[Event "Late-Titled-Tuesday-Blitz-June-18-2024"]
[Site "Chess.com"]
[Date "2024.06.18"]
[Round "6"]
[White "Malev212"]
[Black "NovakRatko"]
[Result "0-1"]
[WhiteElo "2603"]
[BlackElo "2425"]
[TimeControl "180+1"]
[EndTime "15:08:58 PDT"]
[Termination "NovakRatko won on time"]

1. e4 {[%clk 0:02:54]} 1... d5 {[%clk 0:03:00.1]} 2. exd5 {[%clk 0:02:52.9]}
2... c6 {[%clk 0:03:00.7]} 3. d4 {[%clk 0:02:50.2]} 3... cxd5 {[%clk 0:02:59.7]}
4. Bd3 {[%clk 0:02:50.1]} 4... Nc6 {[%clk 0:03:00.3]} 5. c3 {[%clk 0:02:50.3]}
5... g6 {[%clk 0:03:00.8]} 6. Bf4 {[%clk 0:02:48.9]} 6... Bg7 {[%clk 0:03:01.4]}
7. Nd2 {[%clk 0:02:49]} 7... f6 {[%clk 0:03:02]} 8. Ngf3 {[%clk 0:02:42.4]} 8...
e5 {[%clk 0:03:01.8]} 9. dxe5 {[%clk 0:02:42.6]} 9... fxe5 {[%clk 0:03:01.8]}
10. Bg5 {[%clk 0:02:42.7]} 10... Nge7 {[%clk 0:03:00.9]} 11. Bb5 {[%clk
0:02:35.7]} 11... O-O {[%clk 0:03:00.6]} 12. O-O {[%clk 0:02:33.1]} 12... Qd6
{[%clk 0:02:59.2]} 13. Qb3 {[%clk 0:02:28.8]} 13... Kh8 {[%clk 0:02:57.5]} 14.
Rad1 {[%clk 0:02:26.8]} 14... Be6 {[%clk 0:02:51.5]} 15. Rfe1 {[%clk 0:02:19.9]}
15... Qc7 {[%clk 0:02:44.9]} 16. Bh4 {[%clk 0:02:04.3]} 16... Nf5 {[%clk
0:02:39]} 17. Bg3 {[%clk 0:01:59.1]} 17... Nxg3 {[%clk 0:02:38.1]} 18. hxg3
{[%clk 0:02:00]} 18... Rae8 {[%clk 0:02:34.4]} 19. Ng5 {[%clk 0:01:56.8]} 19...
Bg8 {[%clk 0:02:33]} 20. Qa4 {[%clk 0:01:53.6]} 20... Qb6 {[%clk 0:02:24.3]} 21.
Re2 {[%clk 0:01:48.3]} 21... e4 {[%clk 0:02:06.9]} 22. Nf1 {[%clk 0:01:38]}
22... h6 {[%clk 0:01:58.1]} 23. Nh3 {[%clk 0:01:33.7]} 23... g5 {[%clk
0:01:57.1]} 24. Ne3 {[%clk 0:01:32.3]} 24... a6 {[%clk 0:01:44.7]} 25. Bxc6
{[%clk 0:01:28.7]} 25... bxc6 {[%clk 0:01:45.6]} 26. Qa3 {[%clk 0:01:19.6]}
26... Rb8 {[%clk 0:01:42.8]} 27. Qd6 {[%clk 0:01:15.7]} 27... Rfd8 {[%clk
0:01:39.3]} 28. Qg6 {[%clk 0:01:14.5]} 28... c5 {[%clk 0:01:36.7]} 29. Qh5
{[%clk 0:01:13.1]} 29... Qf6 {[%clk 0:01:28.7]} 30. Ng4 {[%clk 0:00:42.2]} 30...
Qf7 {[%clk 0:01:27.8]} 31. Qxf7 {[%clk 0:00:38.3]} 31... Bxf7 {[%clk 0:01:27.7]}
32. c4 {[%clk 0:00:35.8]} 32... dxc4 {[%clk 0:01:23.3]} 33. Rxd8+ {[%clk
0:00:34]} 33... Rxd8 {[%clk 0:01:24.2]} 34. Ne3 {[%clk 0:00:32.2]} 34... c3
{[%clk 0:01:20.8]} 35. bxc3 {[%clk 0:00:31.4]} 35... Bxc3 {[%clk 0:01:21.2]} 36.
Nf5 {[%clk 0:00:30.8]} 36... Bg7 {[%clk 0:00:34.4]} 37. Rxe4 {[%clk 0:00:18.7]}
37... Bg6 {[%clk 0:00:34.2]} 38. g4 {[%clk 0:00:16.7]} 38... Rd1+ {[%clk
0:00:31.2]} 39. Kh2 {[%clk 0:00:16]} 39... Rd2 {[%clk 0:00:29]} 40. f3 {[%clk
0:00:04.2]} 40... Rxa2 {[%clk 0:00:28.6]} 0-1

[Event "Late-Titled-Tuesday-Blitz-June-18-2024"]
[Site "Chess.com"]
[Date "2024.06.18"]
[Round "6"]
[White "protectiago"]
[Black "unbreakablepawn35"]
[Result "0-1"]
[WhiteElo "2151"]
[BlackElo "2446"]
[TimeControl "180+1"]
[EndTime "15:08:58 PDT"]
[Termination "unbreakablepawn35 won on time"]

1. d4 {[%clk 0:02:59.5]} 1... Nf6 {[%clk 0:02:58.3]} 2. c4 {[%clk 0:02:56.4]}
2... g6 {[%clk 0:02:58.3]} 3. Nc3 {[%clk 0:02:55.6]} 3... d5 {[%clk 0:02:56.1]}
4. cxd5 {[%clk 0:02:54.9]} 4... Nxd5 {[%clk 0:02:57]} 5. e4 {[%clk 0:02:55.1]}
5... Nxc3 {[%clk 0:02:57.6]} 6. bxc3 {[%clk 0:02:55.7]} 6... Bg7 {[%clk
0:02:58.4]} 7. Be3 {[%clk 0:02:55.1]} 7... O-O {[%clk 0:02:58.8]} 8. Rc1 {[%clk
0:02:54.9]} 8... c5 {[%clk 0:02:59.2]} 9. d5 {[%clk 0:02:27.1]} 9... Qa5 {[%clk
0:02:57]} 10. Qd2 {[%clk 0:02:26.2]} 10... b6 {[%clk 0:02:47.9]} 11. c4 {[%clk
0:02:25.1]} 11... Qxd2+ {[%clk 0:02:46.1]} 12. Bxd2 {[%clk 0:02:20.7]} 12... Ba6
{[%clk 0:02:41]} 13. f4 {[%clk 0:02:17.6]} 13... Nd7 {[%clk 0:02:36.7]} 14. Nf3
{[%clk 0:02:17.6]} 14... e5 {[%clk 0:02:34.4]} 15. g3 {[%clk 0:02:13.6]} 15...
f5 {[%clk 0:02:33.2]} 16. Ng5 {[%clk 0:02:10.3]} 16... fxe4 {[%clk 0:02:22.8]}
17. Ne6 {[%clk 0:02:10.2]} 17... Rfe8 {[%clk 0:02:08.4]} 18. Nc7 {[%clk
0:02:09.1]} 18... e3 {[%clk 0:02:08.6]} 19. Bc3 {[%clk 0:02:02]} 19... exf4
{[%clk 0:02:02.9]} 20. Bxg7 {[%clk 0:01:49.5]} 20... Kxg7 {[%clk 0:02:02.9]} 21.
Nxa6 {[%clk 0:01:49.6]} 21... f3 {[%clk 0:02:00.1]} 22. Nc7 {[%clk 0:01:47.5]}
22... e2 {[%clk 0:01:56.5]} 23. Nxe8+ {[%clk 0:01:45.3]} 23... Rxe8 {[%clk
0:01:55.6]} 24. Bh3 {[%clk 0:01:45.3]} 24... Ne5 {[%clk 0:01:55.3]} 25. Rc3
{[%clk 0:01:41]} 25... g5 {[%clk 0:01:51.1]} 26. Bf5 {[%clk 0:01:25]} 26... g4
{[%clk 0:01:50.3]} 27. h3 {[%clk 0:01:24.6]} 27... h5 {[%clk 0:01:38]} 28. hxg4
{[%clk 0:01:24.3]} 28... hxg4 {[%clk 0:01:38.9]} 29. Rh7+ {[%clk 0:01:19.9]}
29... Kf6 {[%clk 0:01:39.1]} 30. Be6 {[%clk 0:01:03.3]} 30... b5 {[%clk
0:01:04.1]} 31. cxb5 {[%clk 0:00:45.6]} 31... c4 {[%clk 0:01:05]} 32. Rh4 {[%clk
0:00:16.1]} 32... Nd3+ {[%clk 0:00:38.4]} 33. Rxd3 {[%clk 0:00:16.2]} 33... cxd3
{[%clk 0:00:39.3]} 34. Rxg4 {[%clk 0:00:15.8]} 34... Rh8 {[%clk 0:00:27.5]} 35.
Rf4+ {[%clk 0:00:15.3]} 35... Ke5 {[%clk 0:00:26.7]} 36. Rh4 {[%clk 0:00:12.4]}
36... Rxh4 {[%clk 0:00:23.3]} 37. gxh4 {[%clk 0:00:12.6]} 37... Kf4 {[%clk
0:00:23.3]} 38. Kf2 {[%clk 0:00:07]} 38... d2 {[%clk 0:00:22.9]} 0-1